[Event "GER-ch Youth-U14w 2022"]
[Site "Willingen"]
[Date "2022.06.06"]
[Round "3.11"]
[White "Margaryan, Sofia"]
[Black "Hergenroeder, Cora"]
[Result "0-1"]
[ECO "D35"]
[WhiteElo "1181"]
[BlackElo "1453"]
[Annotator "NA RC COMBH"]
[PlyCount "83"]
[EventDate "2022.06.05"]
[EventType "swiss"]
[EventRounds "9"]
[EventCountry "GER"]
[SourceTitle "playchess.com"]
[Source "ChessBase"]
[SourceQuality "1"]
[TimeControl "40/4500+30:900+30"]

1. d4 {[%emt 0:00:00]} d5 {[%emt 0:00:00]} 2. c4 {[%emt 0:00:00]} e6 {[%emt 0:00:00]} 3. Nc3 {[%emt 0:00:00]} Nf6 {[%emt 0:00:00]} 4. cxd5 {[%emt 0:00:00]} exd5 {[%emt 0:00:00]} 5. Nf3 {[%emt 0:00:00]} Bb4 {[%emt 0:00:00]} 6. Bd2 {[%emt 0:00:00]} O-O {[%emt 0:00:00]} 7. e3 {[%emt 0:00:00]} Bf5 {[%emt 0:00:00]} 8. Be2 {[%emt 0:00:00]} c6 {[%emt 0:00:00]} 9. O-O {[%emt 0:00:00]} Nbd7 {[%emt 0:00:00]} 10. a3 {[%emt 0:00:00]} Bd6 {[%emt 0:00:00]} 11. Rc1 {[%emt 0:00:00]} h6 {[%emt 0:01:50]} 12. h3 {[%emt 0:02:37]} Re8 {[%emt 0:03:25]} 13. b4 {[%emt 0:07:49]} Nb6 {[%emt 0:06:13]} 14. Qb3 {[%emt 0:10:31]} a6 {[%emt 0:22:28]} 15. Rfe1 {[%emt 0:13:25]} Be6 {[%emt 0:03:58]} 16. Qb2 {[%emt 0:02:39]} Qe7 {[%emt 0:15:17]} 17. Ra1 {[%emt 0:02:05]} Qc7 {[%emt 0:04:53]} 18. a4 {[%emt 0:15:47]} Nc4 {[%emt 0:07:23]} 19. Bxc4 {[%emt 0:01:13]} dxc4 {[%emt 0:00:03]} 20. a5 {[%emt 0:00:20]} Nd5 {[%emt 0:05:07]} 21. Nxd5 {[%emt 0:03:29]} cxd5 {[%emt 0:00:28]} 22. Rec1 {[%emt 0:01:44]} Bd7 {[%emt 0:03:44]} 23. Bc3 {[%emt 0:02:50]} f6 {[%emt 0:01:08]} 24. Nd2 {[%emt 0:02:53]} Qc6 {[%emt 0:03:24]} 25. Re1 {[%emt 0:02:17]} Bc7 {[%emt 0:00:43]} 26. Re2 {[%emt 0:01:31]} Bf5 {[%emt 0:02:06]} 27. Nb1 {[%emt 0:03:54]} Qd6 {[%emt 0:00:59]} 28. f4 {[%emt 0:02:43]} Qd7 {[%emt 0:01:58]} 29. Kh2 {[%emt 0:00:43]} Bd3 {[%emt 0:00:15]} 30. Rf2 {[%emt 0:00:45]} Rxe3 {[%emt 0:00:48]} 31. Bd2 {[%emt 0:00:37]} Re7 {[%emt 0:00:41]} 32. Nc3 {[%emt 0:00:18]} Kh8 {[%emt 0:01:23]} 33. Re1 {[%emt 0:00:32]} Rxe1 {[%emt 0:00:46]} 34. Bxe1 {[%emt 0:00:06]} Re8 {[%emt 0:00:24]} 35. Bd2 {[%emt 0:00:06]} Bg6 {[%emt 0:00:39]} 36. Qa3 {[%emt 0:00:33]} Bf7 {[%emt 0:01:10]} 37. Kg1 {[%emt 0:00:31]} Bd8 {[%emt 0:00:27]} 38. Rf3 {[%emt 0:01:05]} f5 {[%emt 0:00:44]} 39. Rg3 {[%emt 0:00:32]} Bf6 {[%emt 0:00:43]} 40. Be3 {[%emt 0:00:54]} Bh4 {[%emt 0:00:32]} 41. Rf3 {[%emt 0:16:19]} Bh5 {[%emt 0:15:18]} 42. Rf1 0-1

[Event "GER-ch Youth-U14w 2022"]
[Site "Willingen"]
[Date "2022.06.06"]
[Round "3.12"]
[White "Heuberger, Sandra"]
[Black "Steinlechner, Katja"]
[Result "0-1"]
[ECO "D57"]
[WhiteElo "1101"]
[BlackElo "1317"]
[Annotator "NA RC COMBH"]
[PlyCount "85"]
[EventDate "2022.06.05"]
[EventType "swiss"]
[EventRounds "9"]
[EventCountry "GER"]
[SourceTitle "playchess.com"]
[Source "ChessBase"]
[SourceQuality "1"]
[TimeControl "40/4500+30:900+30"]

1. d4 {[%emt 0:00:00]} d5 {[%emt 0:00:00]} 2. c4 {[%emt 0:00:00]} e6 {[%emt 0:00:00]} 3. Nc3 {[%emt 0:00:00]} Nf6 {[%emt 0:00:00]} 4. Bg5 {[%emt 0:00:00]} Be7 {[%emt 0:00:00]} 5. e3 {[%emt 0:00:00]} O-O {[%emt 0:00:00]} 6. Nf3 {[%emt 0:00:00]} h6 {[%emt 0:00:00]} 7. Bh4 {[%emt 0:00:00]} Ne4 {[%emt 0:00:00]} 8. Bxe7 {[%emt 0:00:00]} Qxe7 {[%emt 0:00:00]} 9. cxd5 {[%emt 0:00:00]} Nxc3 {[%emt 0:00:00]} 10. bxc3 {[%emt 0:00:00]} exd5 {[%emt 0:00:00]} 11. Bd3 {[%emt 0:00:00]} b6 {[%emt 0:00:00]} 12. O-O {[%emt 0:00:00]} Be6 {[%emt 0:08:10]} 13. Re1 {[%emt 0:02:17]} Nd7 {[%emt 0:07:38]} 14. e4 {[%emt 0:11:20]} Qd6 {[%emt 0:10:40]} 15. Qc2 {[%emt 0:11:15]} c5 {[%emt 0:06:28]} 16. exd5 {[%emt 0:08:24]} Bxd5 {[%emt 0:07:20]} 17. Be4 {[%emt 0:05:17]} Nf6 {[%emt 0:06:41]} 18. Bxd5 {[%emt 0:05:35]} Nxd5 {[%emt 0:08:20]} 19. Rad1 {[%emt 0:04:32]} Qg6 {[%emt 0:06:04]} 20. Qd2 {[%emt 0:02:47]} cxd4 {[%emt 0:03:14]} 21. Ne5 {[%emt 0:03:46]} Qg5 {[%emt 0:05:28]} 22. Qxd4 {[%emt 0:01:31]} Rad8 {[%emt 0:02:46]} 23. Nc6 {[%emt 0:05:16]} Nf4 {[%emt 0:04:12]} 24. Qe4 {[%emt 0:01:47]} Nh3+ {[%emt 0:03:20]} 25. Kf1 {[%emt 0:01:09]} Rxd1 {[%emt 0:03:44]} 26. Rxd1 {[%emt 0:00:35]} Qb5+ {[%emt 0:01:00]} 27. Ke1 {[%emt 0:03:43]} Ng5 {[%emt 0:01:06]} 28. Nxa7 {[%emt 0:05:33]} Qa6 {[%emt 0:01:09]} 29. Qe7 {[%emt 0:01:06]} Qxa2 {[%emt 0:00:31]} 30. Nc6 {[%emt 0:04:00]} Qe6+ {[%emt 0:00:37]} 31. Qxe6 {[%emt 0:00:25]} Nxe6 {[%emt 0:00:21]} 32. Rb1 {[%emt 0:00:50]} Ra8 {[%emt 0:01:20]} 33. Rxb6 {[%emt 0:01:02]} Ra1+ {[%emt 0:00:09]} 34. Ke2 {[%emt 0:00:11]} Ra2+ {[%emt 0:00:09]} 35. Ke3 {[%emt 0:00:26]} Ra3 {[%emt 0:00:27]} 36. Ne7+ {[%emt 0:01:54]} Kh7 {[%emt 0:00:19]} 37. Nd5 {[%emt 0:00:08]} Nc7 {[%emt 0:00:49]} 38. Kd4 {[%emt 0:06:25]} Nxd5 {[%emt 0:00:23]} 39. Kxd5 {[%emt 0:00:30]} Rxc3 {[%emt 0:00:12]} 40. Rb7 {[%emt 0:00:12]} Rc2 {[%emt 0:00:47]} 41. Rxf7 {[%emt 0:15:15]} Kg6 {[%emt 0:16:18]} 42. g3 {[%emt 0:01:52]} Kxf7 {[%emt 0:00:16]} 43. Kd4 0-1

[Event "GER-ch Youth-U14w 2022"]
[Site "Willingen"]
[Date "2022.06.06"]
[Round "3.13"]
[White "Marrufo, Emilia"]
[Black "Mueller, Riyanna"]
[Result "0-1"]
[ECO "D00"]
[WhiteElo "998"]
[BlackElo "1521"]
[Annotator "NA RC COMBH"]
[PlyCount "90"]
[EventDate "2022.06.05"]
[EventType "swiss"]
[EventRounds "9"]
[EventCountry "GER"]
[SourceTitle "playchess.com"]
[Source "ChessBase"]
[SourceQuality "1"]
[TimeControl "40/4500+30:900+30"]

1. d4 {[%emt 0:00:00]} d5 {[%emt 0:00:00]} 2. Bf4 {[%emt 0:00:00]} c5 {[%emt 0:00:00]} 3. c3 {[%emt 0:00:00]} cxd4 {[%emt 0:00:00]} 4. cxd4 {[%emt 0:00:00]} Nf6 {[%emt 0:00:00]} 5. e3 {[%emt 0:00:00]} Nc6 {[%emt 0:00:00]} 6. Nf3 {[%emt 0:00:00]} Bf5 {[%emt 0:00:00]} 7. Bd3 {[%emt 0:00:00]} Bg6 {[%emt 0:05:29]} 8. Nc3 {[%emt 0:02:20]} e6 {[%emt 0:01:18]} 9. a3 {[%emt 0:05:59]} Qb6 {[%emt 0:11:10]} 10. Rb1 {[%emt 0:07:27]} Rc8 {[%emt 0:04:49]} 11. Qd2 {[%emt 0:05:33]} Be7 {[%emt 0:21:26]} 12. Ne5 {[%emt 0:10:16]} Nxe5 {[%emt 0:02:56]} 13. Bxe5 {[%emt 0:01:48]} O-O {[%emt 0:00:58]} 14. Bxg6 {[%emt 0:04:59]} hxg6 {[%emt 0:00:37]} 15. O-O {[%emt 0:03:03]} Nd7 {[%emt 0:02:08]} 16. f4 {[%emt 0:01:17]} Qa5 {[%emt 0:01:37]} 17. Rbc1 {[%emt 0:02:07]} f6 {[%emt 0:00:17]} 18. Bxf6 {[%emt 0:02:27]} gxf6 {[%emt 0:00:09]} 19. Rf3 {[%emt 0:05:13]} Nb6 {[%emt 0:01:07]} 20. Qc2 {[%emt 0:04:52]} Kf7 {[%emt 0:00:59]} 21. Qd3 {[%emt 0:01:47]} Nc4 {[%emt 0:01:45]} 22. Rb1 {[%emt 0:03:30]} Nxb2 {[%emt 0:04:07]} 23. Rxb2 {[%emt 0:01:34]} Rxc3 {[%emt 0:00:09]} 24. Qd2 {[%emt 0:01:15]} Rxa3 {[%emt 0:01:20]} 25. h3 {[%emt 0:00:28]} Qxd2 {[%emt 0:00:19]} 26. Rxd2 {[%emt 0:00:20]} b5 {[%emt 0:00:07]} 27. Rb2 {[%emt 0:00:51]} b4 {[%emt 0:00:10]} 28. Kh2 {[%emt 0:01:13]} b3 {[%emt 0:00:12]} 29. Rff2 {[%emt 0:01:17]} Bb4 {[%emt 0:00:20]} 30. Rf1 {[%emt 0:01:59]} Bc3 {[%emt 0:00:11]} 31. Rbb1 {[%emt 0:00:44]} b2 {[%emt 0:00:12]} 32. Rfd1 {[%emt 0:01:13]} Ra1 {[%emt 0:00:14]} 33. Rf1 {[%emt 0:01:25]} Rb8 {[%emt 0:00:21]} 34. Rfd1 {[%emt 0:00:14]} Rxb1 {[%emt 0:00:14]} 35. Rxb1 {[%emt 0:00:07]} Rb5 {[%emt 0:00:07]} 36. Kh1 {[%emt 0:00:39]} Ra5 {[%emt 0:00:05]} 37. Kh2 {[%emt 0:00:06]} Ra1 {[%emt 0:00:05]} 38. Rxa1 {[%emt 0:00:07]} bxa1=Q {[%emt 0:00:08]} 39. Kg3 {[%emt 0:00:25]} Qe1+ {[%emt 0:00:17]} 40. Kh2 {[%emt 0:00:19]} Qxe3 {[%emt 0:00:15]} 41. Kh1 {[%emt 0:15:13]} Bxd4 {[%emt 0:15:21]} 42. Kh2 {[%emt 0:00:12]} Qxf4+ {[%emt 0:00:07]} 43. Kh1 {[%emt 0:00:11]} Bf2 {[%emt 0:00:11]} 44. g3 {[%emt 0:00:29]} Qc1+ {[%emt 0:00:07]} 45. Kh2 {[%emt 0:00:16]} Qg1# 0-1

[Event "GER-ch Youth-U14w 2022"]
[Site "Willingen"]
[Date "2022.06.06"]
[Round "3.14"]
[White "Funke, Luise"]
[Black "Modali, Nikhilamrutha"]
[Result "0-1"]
[ECO "B46"]
[WhiteElo "970"]
[BlackElo "1262"]
[Annotator "NA RC COMBH"]
[PlyCount "45"]
[EventDate "2022.06.05"]
[EventType "swiss"]
[EventRounds "9"]
[EventCountry "GER"]
[SourceTitle "playchess.com"]
[Source "ChessBase"]
[SourceQuality "1"]
[TimeControl "40/4500+30:900+30"]

1. e4 {[%emt 0:00:00]} c5 {[%emt 0:00:00]} 2. Nf3 {[%emt 0:00:00]} e6 {[%emt 0:00:00]} 3. d4 {[%emt 0:00:00]} cxd4 {[%emt 0:00:00]} 4. Nxd4 {[%emt 0:00:00]} Nc6 {[%emt 0:00:00]} 5. Nc3 {[%emt 0:00:00]} a6 {[%emt 0:00:00]} 6. Be3 {[%emt 0:00:00]} Nf6 {[%emt 0:00:00]} 7. Qd2 {[%emt 0:00:00]} Bb4 {[%emt 0:00:00]} 8. O-O-O {[%emt 0:00:00]} Nxe4 {[%emt 0:00:00]} 9. Qd3 {[%emt 0:00:00]} Nxc3 {[%emt 0:00:00]} 10. bxc3 Ba3+ {[%emt 0:00:00]} 11. Kb1 {[%emt 0:00:00]} O-O 12. g4 Ne5 {[%emt 0:17:51]} 13. Qe4 {[%emt 0:00:00]} Ng6 {[%emt 0:00:48]} 14. f4 {[%emt 0:00:00]} d5 {[%emt 0:01:47]} 15. Qf3 {[%emt 0:00:00]} Qc7 {[%emt 0:06:59]} 16. Rd3 {[%emt 0:01:15]} e5 {[%emt 0:02:40]} 17. Qxd5 {[%emt 0:06:32]} exd4 {[%emt 0:01:39]} 18. Qxd4 {[%emt 0:01:38]} Bxg4 {[%emt 0:03:28]} 19. c4 {[%emt 0:04:15]} Rad8 {[%emt 0:07:20]} 20. Qe4 Rfe8 {[%emt 0:03:22]} 21. Qg2 {[%emt 0:05:16]} Rxe3 22. Rxd8+ {[%emt 0:03:44]} Qxd8 {[%emt 0:00:37]} 23. Bd3 {[%emt 0:02:59]} 0-1

[Event "GER-ch Youth-U14w 2022"]
[Site "Willingen"]
[Date "2022.06.06"]
[Round "3.15"]
[White "Lorenz, Rebecca"]
[Black "Brandt, Greta"]
[Result "0-1"]
[ECO "C01"]
[WhiteElo "733"]
[BlackElo "1458"]
[Annotator "NA RC COMBH"]
[PlyCount "32"]
[EventDate "2022.06.05"]
[EventType "swiss"]
[EventRounds "9"]
[EventCountry "GER"]
[SourceTitle "playchess.com"]
[Source "ChessBase"]
[SourceQuality "1"]
[TimeControl "40/4500+30:900+30"]

1. e4 {[%emt 0:00:00]} e6 {[%emt 0:00:00]} 2. d4 {[%emt 0:00:00]} d5 {[%emt 0:00:00]} 3. exd5 {[%emt 0:00:00]} exd5 {[%emt 0:00:00]} 4. c4 {[%emt 0:00:00]} Bb4+ {[%emt 0:00:00]} 5. Nc3 {[%emt 0:00:00]} Ne7 {[%emt 0:00:00]} 6. Nf3 {[%emt 0:00:00]} O-O {[%emt 0:00:00]} 7. Be2 {[%emt 0:00:00]} dxc4 {[%emt 0:00:00]} 8. Bxc4 {[%emt 0:00:00]} Bg4 {[%emt 0:00:13]} 9. O-O {[%emt 0:00:00]} Nbc6 {[%emt 0:02:44]} 10. Be3 {[%emt 0:00:00]} Nf5 {[%emt 0:01:59]} 11. Qe2 {[%emt 0:00:00]} Nfxd4 {[%emt 0:01:59]} 12. Bxd4 {[%emt 0:00:00]} Nxd4 {[%emt 0:00:19]} 13. Qe4 {[%emt 0:00:00]} Nxf3+ {[%emt 0:02:50]} 14. gxf3 {[%emt 0:00:00]} Bh3 {[%emt 0:00:35]} 15. Rfd1 {[%emt 0:00:00]} Qg5+ {[%emt 0:00:20]} 16. Kh1 {[%emt 0:00:00]} Qg2# 0-1

[Event "GER-ch Youth-U14w 2022"]
[Site "Willingen"]
[Date "2022.06.07"]
[Round "4.1"]
[White "Lorenz, Veronika"]
[Black "Peglau, Dora"]
[Result "0-1"]
[ECO "C02"]
[WhiteElo "1510"]
[BlackElo "2008"]
[Annotator "TA"]
[PlyCount "140"]
[EventDate "2022.06.05"]
[EventType "swiss"]
[EventRounds "9"]
[EventCountry "GER"]
[SourceTitle "playchess.com"]
[Source "ChessBase"]
[SourceQuality "1"]
[TimeControl "40/4500+30:900+30"]

{[%evp 14,140,27,23,37,25,44,39,38,35,34,18,36,42,38,36,150,81,157,87,119,102,177,34,35,35,39,-125,6,0,0,-48,0,-83,-57,-154,-121,-250,-235,-237,-194,-187,-179,-237,-231,-244,-243,-280,-212,-221,-216,-270,-164,-152,-154,-148,-157,-154,-151,-156,-161,-159,-104,-111,-100,-116,-94,-140,-82,-146,-11,-427,-425,-364,-295,-287,-280,-249,-254,-250,-169,-172,0,-217,0,-8,-8,-8,0,0,0,0,0,-64,-8,-633,-491,-475,-482,-1164,-8,-10,-8,-8,-8,-924,-822,-5624,-5337,-5147,-5114,-5106,-3467,-1332,-1310,-29977,-29976,-29976,-29977,-29978,-29979,-29978,-29979,-29979,-29980,-29980,-29981,-29981,-29982]} 1. e4 {[%emt 0:00:00]} c5 {[%emt 0:00:00]} 2. Nf3 {[%emt 0:00:00]} e6 {[%emt 0:00:00]} 3. c3 {[%emt 0:00:00]} Nc6 {[%emt 0:00:00]} 4. d4 {[%emt 0:00:00]} d5 {[%emt 0:00:00]} 5. e5 {[%emt 0:00:00]} Bd7 {[%emt 0:00:00]} 6. Be2 {[%emt 0:00:00]} Nge7 {[%emt 0:00:00]} 7. O-O {[%emt 0:00:00]} Ng6 $1 {[%emt 0:00:00] 7...Ng6 is better than 7...Nf5.} 8. g3 {[%emt 0:00:00]} Be7 {[%emt 0:00:00] C02: French: Advance Variation.} 9. h4 {[%emt 0:00:00][%cal Bh2h4,Bh4h5][%mdl 32]} h6 {[%emt 0:00:00] [#]} 10. h5 $146 {[%emt 0:09:57]} ({Predecessor:} 10. Be3 cxd4 11. cxd4 O-O 12. Nc3 f6 13. Bd3 Be8 14. Qb1 fxe5 15. Bxg6 Rxf3 16. dxe5 Nxe5 17. Bxe8 Qxe8 {0-1 (65) Shirov,A (2689)-Shipov,S (2541) Puhajarve 2015}) 10... Nf8 {[%emt 0:00:00] White is slightly better.} 11. dxc5 {[%emt 0:00:43]} Bxc5 {[%emt 0:00:00]} 12. b4 {[%emt 0:00:07]} Be7 {[%emt 0:01:01]} 13. Bd3 {[%emt 0:05:36]} Qc7 {[%emt 0:09:50]} 14. Re1 {[%emt 0:01:44]} O-O-O {[%emt 0:14:17]} (14... a6 $14) 15. Be3 {[%emt 0:06:06]} ({Better is} 15. Na3) 15... g5 {[%emt 0:05:04]} (15... f6 $142) 16. Qe2 {[%emt 0:15:38]} (16. Na3 $142 $1 {[%cal Ra3b5]}) 16... Kb8 {[%emt 0:22:51]} 17. Nbd2 {[%emt 0:05:07]} f5 {[%emt 0:03:36]} (17... Ka8 $16) 18. Bc5 {[%emt 0:03:39]} (18. exf6 $1 $18 Bxf6 19. b5) 18... Bxc5 $14 {[%emt 0:02:14]} 19. bxc5 {[%emt 0:00:02]} Na5 {[%emt 0:04:01]} 20. c4 $2 {[%emt 0:08:20]} (20. Nb3 $14 {keeps the upper hand.}) 20... Nxc4 {[%emt 0:01:45]} (20... Bc6 $17 {aiming for ...d4.} 21. Nd4 dxc4 22. Nxc6+ Nxc6 23. Nxc4 Rd5) 21. Bxc4 {[%emt 0:03:23]} dxc4 {[%emt 0:00:04]} 22. Qxc4 {[%emt 0:02:22]} (22. Nd4 $11 {feels stronger.}) 22... Bc6 {[%emt 0:01:01]} (22... Nh7 $15 {might be stronger.}) 23. Rab1 {[%emt 0:03:08]} (23. Nd4 $11) 23... Bd5 $17 {[%emt 0:02:26]} 24. Qc2 {[%emt 0:01:11]} (24. Qb4 $15) 24... Nd7 {[%emt 0:01:41][%cal Bf8d7,Bd7c5,Bc5d3][%mdl 32]} 25. Qb2 {[%emt 0:10:13]} (25. Nd4 $17 {might work better.}) 25... Nxc5 $19 {[%emt 0:03:31]} 26. Rec1 {[%emt 0:01:57]} Nd3 {[%emt 0:02:01] Active counter play!} 27. Rxc7 {[%emt 0:00:22]} Nxb2 {[%emt 0:00:05]} 28. Re7 {[%emt 0:00:44]} (28. Rg7 {was called for.} Nd3 29. Nd4) 28... Nd3 {[%emt 0:01:26]} 29. Kf1 {[%emt 0:05:18]} Rde8 {[%emt 0:01:18]} 30. Rg7 {[%emt 0:01:11]} g4 {[%emt 0:00:19]} 31. Nd4 {[%emt 0:01:10]} Nxe5 {[%emt 0:00:17]} 32. Nb5 {[%emt 0:01:18]} Rd8 {[%emt 0:02:53]} 33. Nc7 {[%emt 0:00:56]} Rd7 {[%emt 0:05:24]} (33... Bxa2 $2 34. Na6+ Ka8 35. Rbxb7 $1 $18) 34. Rxd7 {[%emt 0:00:57]} Nxd7 {[%emt 0:00:04]} 35. Nxd5 {[%emt 0:00:01]} exd5 $17 {[%emt 0:00:01][%mdl 4096] Endgame KRN-KRN} 36. Re1 {[%emt 0:00:22]} Rf8 {[%emt 0:01:18]} 37. Re7 {[%emt 0:01:00]} Kc7 {[%emt 0:00:11]} (37... Kc8 $142 38. Rh7 Rf6) 38. Nb3 {[%emt 0:00:37]} Kd6 {[%emt 0:00:42]} 39. Rh7 {[%emt 0:00:09] [#]} Rf6 $1 {[%emt 0:00:09]} 40. Ke2 {[%emt 0:00:48] [#]} (40. Nd4 $142) 40... Re6+ {[%emt 0:03:31]} (40... Nc5 $142 $1 41. Nxc5 Kxc5 42. Rxb7 Ra6 43. Rc7+ Kd4) 41. Kd3 {[%emt 0:15:52]} (41. Kf1 $142) 41... a6 {[%emt 0:00:00]} ({Black should play} 41... Ne5+ $17 42. Kc3 Nc6) 42. Na5 $2 {[%emt 0:00:00][%mdl 8192]} (42. Nd4 $11 {and White stays safe.} Nc5+ 43. Kc2) 42... Nc5+ $19 {[%emt 0:00:00]} 43. Kd4 {[%emt 0:00:00]} b6 {[%emt 0:00:00]} 44. Nb7+ {[%emt 0:00:00]} Nxb7 {[%emt 0:00:00]} 45. Rxb7 {[%emt 0:00:00] KR-KR} Re4+ {[%emt 0:00:00]} 46. Kd3 {[%emt 0:00:00]} Kc5 {[%emt 0:00:00]} 47. Rc7+ {[%emt 0:00:00]} Kd6 {[%emt 0:03:38]} 48. Rb7 {[%emt 0:00:00]} Re6 $2 {[%emt 0:02:31]} (48... b5 $19 {Threatens to win with ...Ke5.} 49. Rb6+ Ke5 50. Rxh6 Ra4) 49. Rxb6+ {[%emt 0:00:00]} Ke5 {[%emt 0:00:06]} 50. Rb8 {[%emt 0:00:00]} f4 {[%emt 0:04:57]} 51. Rg8 {[%emt 0:00:00]} fxg3 {[%emt 0:04:32]} 52. fxg3 {[%emt 0:00:00]} Kf5 {[%emt 0:01:58]} 53. Kd4 {[%emt 0:00:00]} (53. Rd8 $11) 53... Re2 {[%emt 0:00:39]} (53... Re4+ $15 54. Kxd5 Re2) 54. Kxd5 $2 {[%emt 0:00:00][%mdl 8192]} (54. Rd8 $11) 54... Rd2+ {[%emt 0:01:51]} 55. Kc4 {[%emt 0:00:00]} Rxa2 {[%emt 0:00:20]} 56. Rg6 {[%emt 0:00:00]} (56. Kd3 $142 Ra3+ 57. Ke2) 56... Ra4+ $2 {[%emt 0:01:54]} (56... Ra3 $19 57. Rxh6 a5) 57. Kb3 {[%emt 0:00:00]} Re4 {[%emt 0:00:31]} 58. Rxh6 {[%emt 0:00:00]} Re3+ {[%emt 0:00:06]} 59. Kb4 $2 {[%emt 0:00:00][%mdl 8192]} (59. Kc2 $11) 59... Rxg3 {[%emt 0:00:19] And now ...Rh3 would win.} 60. Rxa6 {[%emt 0:00:00]} Rh3 {[%emt 0:00:40]} 61. Kc4 {[%emt 0:03:51]} g3 {[%emt 0:00:50][%cal Bg4g3,Bg3g2][%mdl 32]} 62. Rg6 {[%emt 0:00:10]} Kf4 {[%emt 0:01:00]} 63. h6 {[%emt 0:01:00]} Kf3 {[%emt 0:01:45] ( -> ...Kf2)} 64. Rf6+ {[%emt 0:00:15]} Ke3 {[%emt 0:00:34] Black mates.} 65. Rd6 {[%emt 0:06:32]} Rh4+ {[%emt 0:00:52]} 66. Kc3 {[%emt 0:00:09]} g2 {[%emt 0:00:22]} 67. Rd3+ {[%emt 0:00:53]} Kf2 {[%emt 0:00:18]} 68. Rd2+ {[%emt 0:00:10]} Kg3 {[%emt 0:00:15]} 69. Rd3+ {[%emt 0:01:27]} Kh2 {[%emt 0:00:09]} 70. Rd2 {[%emt 0:00:33]} Kh1 {[%emt 0:00:08] Weighted Error Value: White=0.82/Black=0.55} 0-1

[Event "GER-ch Youth-U14w 2022"]
[Site "Willingen"]
[Date "2022.06.07"]
[Round "4.2"]
[White "Trunz, Michelle"]
[Black "Reich, Elisabeth"]
[Result "1-0"]
[ECO "A85"]
[WhiteElo "1708"]
[BlackElo "1457"]
[Annotator "NA RC COMBH"]
[PlyCount "107"]
[EventDate "2022.06.05"]
[EventType "swiss"]
[EventRounds "9"]
[EventCountry "GER"]
[SourceTitle "playchess.com"]
[Source "ChessBase"]
[SourceQuality "1"]
[TimeControl "40/4500+30:900+30"]

1. d4 {[%emt 0:00:00]} f5 {[%emt 0:00:00]} 2. c4 {[%emt 0:00:00]} Nf6 {[%emt 0:00:00]} 3. Nc3 {[%emt 0:00:00]} g6 {[%emt 0:00:00]} 4. Nf3 {[%emt 0:00:00]} Bg7 {[%emt 0:00:00]} 5. Bg5 {[%emt 0:00:00]} O-O {[%emt 0:00:00]} 6. e3 {[%emt 0:00:00]} d6 {[%emt 0:00:00]} 7. Be2 {[%emt 0:00:00]} Nc6 {[%emt 0:00:00]} 8. Qc2 {[%emt 0:06:29]} e5 {[%emt 0:00:00]} 9. Nd5 {[%emt 0:05:16]} Qd7 {[%emt 0:00:00]} 10. Bxf6 {[%emt 0:00:35]} Bxf6 {[%emt 0:00:00]} 11. Nxf6+ {[%emt 0:00:44]} Rxf6 {[%emt 0:00:00]} 12. O-O {[%emt 0:05:47]} e4 {[%emt 0:00:00]} 13. Nd2 {[%emt 0:01:16]} Qe7 {[%emt 0:03:19]} 14. a3 {[%emt 0:01:22]} a5 {[%emt 0:06:33]} 15. Nb1 {[%emt 0:04:08]} Qg7 {[%emt 0:06:58]} 16. Nc3 {[%emt 0:00:22]} Ne7 {[%emt 0:01:32]} 17. b4 {[%emt 0:04:31]} h5 {[%emt 0:07:38]} 18. c5 {[%emt 0:01:56]} c6 {[%emt 0:05:58]} 19. Rfd1 {[%emt 0:04:48]} d5 {[%emt 0:00:20]} 20. b5 {[%emt 0:00:30]} g5 {[%emt 0:07:18]} 21. bxc6 {[%emt 0:00:57]} bxc6 {[%emt 0:01:46]} 22. Na4 {[%emt 0:01:12]} f4 {[%emt 0:03:39]} 23. Nb6 {[%emt 0:07:49]} Ra7 {[%emt 0:06:24]} 24. Nxc8 {[%emt 0:00:07]} Nxc8 {[%emt 0:00:06]} 25. Qd2 {[%emt 0:06:06]} f3 {[%emt 0:02:01]} 26. gxf3 {[%emt 0:00:15]} exf3 {[%emt 0:00:11]} 27. Bd3 {[%emt 0:06:57]} Qd7 {[%emt 0:05:48]} 28. Kh1 {[%emt 0:01:12]} Ne7 {[%emt 0:02:19]} 29. Rg1 {[%emt 0:03:54]} g4 {[%emt 0:01:39]} 30. e4 {[%emt 0:01:59]} dxe4 {[%emt 0:06:04]} 31. Bxe4 {[%emt 0:00:26]} Rf7 {[%emt 0:06:25]} 32. Qg5+ {[%emt 0:01:29]} Rg7 {[%emt 0:00:10]} 33. Qxh5 {[%emt 0:01:48]} Ra8 {[%emt 0:02:16]} 34. Qe5 {[%emt 0:03:25]} Rd8 {[%emt 0:01:53]} 35. Rad1 {[%emt 0:04:22]} Ng6 {[%emt 0:05:04]} 36. Qf5 {[%emt 0:06:54]} Qe7 {[%emt 0:04:43]} 37. Qxg4 {[%emt 0:03:33]} Nh4 {[%emt 0:01:27]} 38. Qxg7+ {[%emt 0:01:47]} Qxg7 {[%emt 0:00:05]} 39. Rxg7+ {[%emt 0:00:04]} Kxg7 {[%emt 0:00:13]} 40. Bxc6 {[%emt 0:02:27]} Kf6 {[%emt 0:00:18]} 41. Kg1 {[%emt 0:15:34]} Kf5 {[%emt 0:16:04]} 42. h3 {[%emt 0:00:00]} Kf4 {[%emt 0:00:00]} 43. Kf1 {[%emt 0:00:00]} Ng2 {[%emt 0:00:00]} 44. Rd3 {[%emt 0:00:00]} Nh4 {[%emt 0:00:00]} 45. Ke1 {[%emt 0:00:00]} Rg8 {[%emt 0:00:00]} 46. Kd1 {[%emt 0:00:00]} Rg2 {[%emt 0:00:00]} 47. Rd2 {[%emt 0:00:00]} Rh2 {[%emt 0:00:00]} 48. d5 {[%emt 0:00:00]} Rxh3 {[%emt 0:00:00]} 49. d6 {[%emt 0:00:00]} Nf5 {[%emt 0:00:00]} 50. d7 {[%emt 0:00:00]} Nh4 {[%emt 0:00:00]} 51. d8=Q {[%emt 0:00:00]} Ng2 {[%emt 0:00:00]} 52. Qf6+ {[%emt 0:00:00]} Kg4 {[%emt 0:00:00]} 53. Bd7+ {[%emt 0:00:00]} Kh5 {[%emt 0:00:00]} 54. Rd5# {[%emt 0:00:00]} 1-0